[Event "Championnat du monde jeunes U10"]
[Date "2024.11.25"]
[White "Xia, Joshua"]
[Black "Sameh Mohamed, Abdalrahman"]
[WhiteElo "2052"]
[BlackElo "2238"]
[Round "10.4"]
[Result "0-1"]
[TimeControl "5400+30"]

1. e4 {[%clk 1:30:57]} 1... e5 {[%clk 1:30:55]} 2. Nf3 {[%clk 1:31:21]} 2... Nc6
{[%clk 1:31:18]} 3. Bb5 {[%clk 1:31:45]} 3... a6 {[%clk 1:31:44]} 4. Ba4 {[%clk
1:32:08]} 4... Nf6 {[%clk 1:32:09]} 5. O-O {[%clk 1:32:28]} 5... Be7 {[%clk
1:32:35]} 6. d3 {[%clk 1:32:50]} 6... b5 {[%clk 1:32:57]} 7. Bb3 {[%clk
1:33:09]} 7... d6 {[%clk 1:33:19]} 8. a3 {[%clk 1:33:32]} 8... O-O {[%clk
1:33:39]} 9. Nc3 {[%clk 1:33:54]} 9... Bg4 {[%clk 1:34:02]} 10. Be3 {[%clk
1:34:15]} 10... Nd4 {[%clk 1:34:28]} 11. Bxd4 {[%clk 1:34:39]} 11... exd4 {[%clk
1:34:53]} 12. Nd5 {[%clk 1:34:59]} 12... Nd7 {[%clk 1:35:15]} 13. h3 {[%clk
1:34:47]} 13... Bxf3 {[%clk 1:35:39]} 14. Qxf3 {[%clk 1:32:22]} 14... c6 {[%clk
1:36:06]} 15. Nxe7+ {[%clk 1:32:42]} 15... Qxe7 {[%clk 1:36:34]} 16. c3 {[%clk
1:29:27]} 16... Nc5 {[%clk 1:24:12]} 17. Ba2 {[%clk 1:25:08]} 17... Qe5 {[%clk
1:24:37]} 18. Rac1 {[%clk 1:25:08]} 18... Na4 {[%clk 1:21:00]} 19. cxd4 {[%clk
1:23:32]} 19... Qxd4 {[%clk 1:21:27]} 20. Rxc6 {[%clk 1:23:18]} 20... Qxb2
{[%clk 1:21:51]} 21. Bd5 {[%clk 1:18:23]} 21... Nc3 {[%clk 1:21:19]} 22. Rxd6
{[%clk 1:06:40]} 22... Nxd5 {[%clk 1:21:32]} 23. Rxd5 {[%clk 1:05:55]} 23...
Qxa3 {[%clk 1:21:56]} 24. e5 {[%clk 0:55:12]} 24... Rad8 {[%clk 0:58:44]} 25.
Rxd8 {[%clk 0:48:10]} 25... Rxd8 {[%clk 0:59:10]} 26. Qc6 {[%clk 0:47:55]} 26...
h6 {[%clk 0:56:43]} 27. d4 {[%clk 0:39:18]} 27... Rxd4 {[%clk 0:49:27]} 28. Qc8+
{[%clk 0:38:35]} 28... Qf8 {[%clk 0:48:08]} 29. Qxa6 {[%clk 0:38:56]} 29... b4
{[%clk 0:48:30]} 30. e6 {[%clk 0:33:03]} 30... fxe6 {[%clk 0:48:50]} 31. Qxe6+
{[%clk 0:33:26]} 31... Kh7 {[%clk 0:49:16]} 32. Qe5 {[%clk 0:28:34]} 32... Qd8
{[%clk 0:38:35]} 33. Qf5+ {[%clk 0:24:59]} 33... Kh8 {[%clk 0:38:52]} 34. Qb5
{[%clk 0:25:02]} 34... Qd6 {[%clk 0:34:59]} 35. Re1 {[%clk 0:23:30]} 35... Kh7
{[%clk 0:35:09]} 36. Qf5+ {[%clk 0:23:03]} 36... Qg6 {[%clk 0:35:34]} 37. Qxg6+
{[%clk 0:23:09]} 37... Kxg6 {[%clk 0:35:57]} 38. Re6+ {[%clk 0:22:15]} 38... Kf5
{[%clk 0:35:52]} 39. Rb6 {[%clk 0:22:05]} 39... Ke4 {[%clk 0:34:04]} 40. Rb7
{[%clk 0:19:22]} 40... g5 {[%clk 0:33:06]} 41. Rb6 {[%clk 0:19:35]} 41... Kd3
{[%clk 0:33:19]} 42. Rxh6 {[%clk 0:08:18]} 42... b3 {[%clk 0:33:41]} 43. Rb6
{[%clk 0:07:41]} 43... Kc3 {[%clk 0:33:38]} 44. g4 {[%clk 0:05:28]} 44... b2
{[%clk 0:33:58]} 45. Rxb2 {[%clk 0:03:40]} 45... Kxb2 {[%clk 0:34:22]} 46. Kg2
{[%clk 0:04:03]} 46... Kc3 {[%clk 0:34:32]} 47. Kg3 {[%clk 0:04:09]} 47... Kd3
{[%clk 0:34:50]} 48. h4 {[%clk 0:04:15]} 48... gxh4+ {[%clk 0:35:06]} 49. Kxh4
{[%clk 0:04:38]} 49... Ke4 {[%clk 0:35:28]} 50. Kh5 {[%clk 0:04:33]} 50... Kf4
{[%clk 0:35:52]} 51. f3 {[%clk 0:04:49]} 51... Rd6 {[%clk 0:36:15]} 0-1

[Variant "Standard"]
[Site "Europe Echecs"]

[Event "Championnat du monde jeunes U10"]
[Date "2024.11.25"]
[White "Annapureddy, Rheyansh Reddy"]
[Black "Bolashakov, Nurali"]
[WhiteElo "2122"]
[BlackElo "2005"]
[Round "10.5"]
[Result "1/2-1/2"]
[TimeControl "5400+30"]

1. e4 {[%clk 1:30:54]} 1... c6 {[%clk 1:30:38]} 2. d4 {[%clk 1:31:13]} 2... d5
{[%clk 1:31:02]} 3. exd5 {[%clk 1:31:40]} 3... cxd5 {[%clk 1:31:27]} 4. Bd3
{[%clk 1:32:07]} 4... Nc6 {[%clk 1:31:48]} 5. c3 {[%clk 1:32:34]} 5... Nf6
{[%clk 1:31:43]} 6. h3 {[%clk 1:32:57]} 6... Qc7 {[%clk 1:31:57]} 7. Nf3 {[%clk
1:33:10]} 7... g6 {[%clk 1:31:35]} 8. O-O {[%clk 1:33:33]} 8... Bf5 {[%clk
1:31:33]} 9. Re1 {[%clk 1:33:57]} 9... Bxd3 {[%clk 1:31:52]} 10. Qxd3 {[%clk
1:34:25]} 10... Bg7 {[%clk 1:31:34]} 11. Be3 {[%clk 1:31:35]} 11... O-O {[%clk
1:30:23]} 12. Nbd2 {[%clk 1:32:00]} 12... a6 {[%clk 1:28:55]} 13. g3 {[%clk
1:28:50]} 13... b5 {[%clk 1:25:33]} 14. a3 {[%clk 1:26:57]} 14... Rfe8 {[%clk
1:13:17]} 15. Kg2 {[%clk 1:24:10]} 15... Qb7 {[%clk 1:07:41]} 16. Bg5 {[%clk
1:06:06]} 16... Nd7 {[%clk 1:03:25]} 17. Bf4 {[%clk 1:03:25]} 17... a5 {[%clk
1:00:02]} 18. Re2 {[%clk 0:59:06]} 18... b4 {[%clk 0:55:57]} 19. a4 {[%clk
0:57:16]} 19... Nd8 {[%clk 0:43:53]} 20. c4 {[%clk 0:52:55]} 20... Ne6 {[%clk
0:38:29]} 21. c5 {[%clk 0:45:33]} 21... Nxd4 {[%clk 0:24:00]} 22. Nxd4 {[%clk
0:42:54]} 22... Nxc5 {[%clk 0:24:09]} 23. Qe3 {[%clk 0:30:59]} 23... e5 {[%clk
0:24:27]} 24. N2f3 {[%clk 0:29:46]} 24... exf4 {[%clk 0:23:14]} 25. Qxe8+ {[%clk
0:28:35]} 25... Rxe8 {[%clk 0:23:40]} 26. Rxe8+ {[%clk 0:28:36]} 26... Bf8
{[%clk 0:24:09]} 27. Rc1 {[%clk 0:28:15]} 27... Qd7 {[%clk 0:13:19]} 28. Rxf8+
{[%clk 0:26:23]} 28... Kxf8 {[%clk 0:13:48]} 29. Rxc5 {[%clk 0:26:42]} 29...
Qxa4 {[%clk 0:13:30]} 1/2-1/2

[Variant "Standard"]
[Site "Europe Echecs"]

[Event "Championnat du monde jeunes U10"]
[Date "2024.11.25"]
[White "Ling, Chenxuan"]
[Black "Kolodziejczyk, Boris"]
[WhiteElo "1967"]
[BlackElo "2115"]
[Round "10.6"]
[Result "1-0"]
[TimeControl "5400+30"]

1. d4 {[%clk 1:30:54]} 1... Nf6 {[%clk 1:30:47]} 2. c4 {[%clk 1:31:18]} 2... d6
{[%clk 1:31:08]} 3. Nc3 {[%clk 1:31:40]} 3... Nbd7 {[%clk 1:31:17]} 4. Nf3
{[%clk 1:31:59]} 4... g6 {[%clk 1:31:26]} 5. e4 {[%clk 1:32:22]} 5... Bg7 {[%clk
1:30:53]} 6. Be2 {[%clk 1:32:40]} 6... O-O {[%clk 1:31:16]} 7. O-O {[%clk
1:33:05]} 7... e5 {[%clk 1:31:21]} 8. Re1 {[%clk 1:22:26]} 8... a5 {[%clk
1:27:12]} 9. Bf1 {[%clk 1:21:24]} 9... Re8 {[%clk 1:25:11]} 10. Be3 {[%clk
1:13:20]} 10... h6 {[%clk 1:16:44]} 11. h3 {[%clk 1:08:46]} 11... exd4 {[%clk
1:12:04]} 12. Bxd4 {[%clk 1:08:52]} 12... c6 {[%clk 1:11:51]} 13. Qc2 {[%clk
1:02:09]} 13... Qc7 {[%clk 1:10:41]} 14. Rad1 {[%clk 0:58:47]} 14... g5 {[%clk
1:01:12]} 15. b3 {[%clk 0:43:43]} 15... Ne5 {[%clk 0:52:13]} 16. Nxe5 {[%clk
0:36:24]} 16... dxe5 {[%clk 0:52:27]} 17. Be3 {[%clk 0:36:48]} 17... b6 {[%clk
0:42:24]} 18. a4 {[%clk 0:33:00]} 18... Bf8 {[%clk 0:38:58]} 19. c5 {[%clk
0:28:46]} 19... bxc5 {[%clk 0:35:32]} 20. Nb1 {[%clk 0:26:51]} 20... Nd7 {[%clk
0:34:29]} 21. Na3 {[%clk 0:26:07]} 21... Be7 {[%clk 0:32:39]} 22. Nc4 {[%clk
0:24:59]} 22... Nf8 {[%clk 0:29:50]} 23. Qc3 {[%clk 0:23:00]} 23... f6 {[%clk
0:29:21]} 24. Nb2 {[%clk 0:20:28]} 24... Ne6 {[%clk 0:24:37]} 25. Bc4 {[%clk
0:19:16]} 25... Rb8 {[%clk 0:22:42]} 26. Bd2 {[%clk 0:17:36]} 26... Ra8 {[%clk
0:22:11]} 27. Be3 {[%clk 0:15:52]} 27... Qb6 {[%clk 0:20:10]} 28. Qc2 {[%clk
0:12:42]} 28... Rb8 {[%clk 0:17:12]} 29. Qe2 {[%clk 0:12:06]} 29... Kg7 {[%clk
0:17:12]} 30. Qh5 {[%clk 0:10:58]} 30... Rf8 {[%clk 0:17:11]} 31. Rd3 {[%clk
0:10:12]} 31... Nd4 {[%clk 0:16:58]} 32. h4 {[%clk 0:08:03]} 32... Bd7 {[%clk
0:15:21]} 33. Bd2 {[%clk 0:07:33]} 33... Be8 {[%clk 0:14:47]} 34. Qd1 {[%clk
0:07:57]} 34... Bg6 {[%clk 0:14:28]} 35. h5 {[%clk 0:07:15]} 35... Be8 {[%clk
0:14:22]} 36. g4 {[%clk 0:06:26]} 36... Bd7 {[%clk 0:13:29]} 37. f3 {[%clk
0:06:45]} 37... Rfd8 {[%clk 0:13:44]} 38. Kf2 {[%clk 0:06:41]} 38... Ra8 {[%clk
0:13:14]} 39. Ree3 {[%clk 0:05:45]} 39... Rdb8 {[%clk 0:13:23]} 40. Be1 {[%clk
0:05:27]} 40... Qd8 {[%clk 0:13:31]} 41. Kg2 {[%clk 0:05:33]} 41... Bd6 {[%clk
0:13:52]} 42. Bc3 {[%clk 0:05:22]} 42... Qe7 {[%clk 0:13:44]} 43. Be1 {[%clk
0:05:39]} 43... Rd8 {[%clk 0:14:02]} 44. Qc1 {[%clk 0:05:38]} 44... Bc7 {[%clk
0:14:09]} 45. Qd1 {[%clk 0:05:54]} 45... Be6 {[%clk 0:13:26]} 46. Kg3 {[%clk
0:06:04]} 46... Qf7 {[%clk 0:11:23]} 47. Kf2 {[%clk 0:05:30]} 47... Qe8 {[%clk
0:10:30]} 48. Kg1 {[%clk 0:05:20]} 48... Bf7 {[%clk 0:08:55]} 49. Bg3 {[%clk
0:05:08]} 49... Ne6 {[%clk 0:08:41]} 50. Rxd8 {[%clk 0:04:59]} 50... Rxd8 {[%clk
0:08:09]} 51. Rd3 {[%clk 0:05:23]} 51... Nd4 {[%clk 0:06:42]} 52. Kg2 {[%clk
0:05:30]} 52... Be6 {[%clk 0:06:45]} 53. Bf2 {[%clk 0:05:20]} 53... Qe7 {[%clk
0:05:51]} 54. Bg3 {[%clk 0:05:26]} 54... Bf7 {[%clk 0:06:07]} 55. Be1 {[%clk
0:05:30]} 55... Ne6 {[%clk 0:06:16]} 56. Bxe6 {[%clk 0:05:07]} 56... Bxe6 {[%clk
0:06:36]} 57. Nc4 {[%clk 0:05:26]} 57... Bxc4 {[%clk 0:06:25]} 58. bxc4 {[%clk
0:05:39]} 58... Rd4 {[%clk 0:05:58]} 59. Bf2 {[%clk 0:04:49]} 59... Qd6 {[%clk
0:04:00]} 60. Bxd4 {[%clk 0:03:57]} 60... exd4 {[%clk 0:04:25]} 61. Rd2 {[%clk
0:03:47]} 61... Qg3+ {[%clk 0:03:47]} 62. Kf1 {[%clk 0:03:41]} 62... Qh3+ {[%clk
0:03:13]} 63. Ke2 {[%clk 0:03:21]} 63... Qg3 {[%clk 0:01:09]} 64. Kd3 {[%clk
0:03:26]} 64... Qf4 {[%clk 0:01:28]} 65. Qe2 {[%clk 0:03:29]} 65... Kf7 {[%clk
0:01:13]} 66. e5 {[%clk 0:02:11]} 66... Bxe5 {[%clk 0:00:56]} 67. Qe4 {[%clk
0:02:35]} 1-0

[Variant "Standard"]
[Site "Europe Echecs"]

[Event "Championnat du monde jeunes U10"]
[Date "2024.11.25"]
[White "Zhu, Linxi"]
[Black "Filipovs, Sergejs"]
[WhiteElo "2100"]
[BlackElo "2012"]
[Round "10.7"]
[Result "1/2-1/2"]
[TimeControl "5400+30"]

1. e4 {[%clk 1:30:57]} 1... e5 {[%clk 1:30:56]} 2. Nf3 {[%clk 1:31:22]} 2... Nc6
{[%clk 1:31:21]} 3. Bb5 {[%clk 1:31:47]} 3... Nge7 {[%clk 1:31:46]} 4. Nc3
{[%clk 1:32:11]} 4... g6 {[%clk 1:32:08]} 5. d4 {[%clk 1:32:36]} 5... exd4
{[%clk 1:32:31]} 6. Nd5 {[%clk 1:33:03]} 6... Bg7 {[%clk 1:32:51]} 7. Bg5 {[%clk
1:33:29]} 7... h6 {[%clk 1:32:58]} 8. Bf6 {[%clk 1:33:53]} 8... Bxf6 {[%clk
1:33:19]} 9. Nxf6+ {[%clk 1:34:19]} 9... Kf8 {[%clk 1:33:43]} 10. Qd2 {[%clk
1:27:27]} 10... d5 {[%clk 1:33:56]} 11. Bxc6 {[%clk 1:23:17]} 11... Nxc6 {[%clk
1:34:19]} 12. Nxd5 {[%clk 1:23:43]} 12... Bf5 {[%clk 1:34:25]} 13. Qf4 {[%clk
1:09:20]} 13... Bxe4 {[%clk 1:34:09]} 14. Qxe4 {[%clk 1:02:43]} 14... Qd6 {[%clk
1:34:34]} 15. Nxc7 {[%clk 1:00:20]} 15... Qxc7 {[%clk 1:34:56]} 16. O-O {[%clk
0:59:25]} 16... Rd8 {[%clk 1:34:46]} 17. Rad1 {[%clk 0:59:07]} 17... Kg7 {[%clk
1:35:08]} 18. Rfe1 {[%clk 0:57:35]} 18... Qd7 {[%clk 1:18:08]} 19. Ne5 {[%clk
0:54:59]} 19... Nxe5 {[%clk 1:17:30]} 20. Qxe5+ {[%clk 0:55:25]} 20... Kh7
{[%clk 1:17:52]} 21. h4 {[%clk 0:51:26]} 21... Rhe8 {[%clk 1:05:39]} 22. Qf6
{[%clk 0:51:36]} 22... Rc8 {[%clk 0:57:07]} 23. Rxe8 {[%clk 0:51:30]} 23... Qxe8
{[%clk 0:57:16]} 24. Rxd4 {[%clk 0:49:42]} 24... Rc6 {[%clk 0:50:07]} 25. Qf3
{[%clk 0:45:11]} 25... Rxc2 {[%clk 0:48:26]} 26. Rf4 {[%clk 0:44:18]} 26... Rc7
{[%clk 0:46:41]} 27. h5 {[%clk 0:34:22]} 27... Qe7 {[%clk 0:39:20]} 28. g3
{[%clk 0:33:01]} 28... Kg7 {[%clk 0:33:53]} 29. Kg2 {[%clk 0:30:53]} 29... Qe8
{[%clk 0:32:07]} 30. Qd3 {[%clk 0:25:49]} 30... Qd7 {[%clk 0:29:13]} 31. Rd4
{[%clk 0:24:12]} 31... Qc6+ {[%clk 0:28:55]} 32. Kh2 {[%clk 0:23:24]} 32... Re7
{[%clk 0:26:05]} 33. hxg6 {[%clk 0:17:00]} 33... Qxg6 {[%clk 0:22:18]} 34. Qc3
{[%clk 0:16:10]} 34... Kh7 {[%clk 0:20:42]} 35. Rd8 {[%clk 0:14:39]} 35... Qh5+
{[%clk 0:20:01]} 36. Kg1 {[%clk 0:10:55]} 36... Qe5 {[%clk 0:20:24]} 37. Qc2+
{[%clk 0:11:02]} 37... Qe4 {[%clk 0:20:19]} 38. Qc8 {[%clk 0:10:29]} 38... Qe1+
{[%clk 0:19:25]} 39. Kg2 {[%clk 0:10:55]} 39... Qe5 {[%clk 0:19:31]} 40. a3
{[%clk 0:08:55]} 40... a6 {[%clk 0:17:39]} 41. Qg4 {[%clk 0:07:40]} 41... Re8
{[%clk 0:16:26]} 42. Rd7 {[%clk 0:05:15]} 42... Re7 {[%clk 0:16:50]} 43. Rd8
{[%clk 0:04:33]} 43... Re8 {[%clk 0:17:15]} 44. Rd2 {[%clk 0:04:50]} 44... Re7
{[%clk 0:16:18]} 45. Qf3 {[%clk 0:05:08]} 45... Kg7 {[%clk 0:16:07]} 46. Kh2
{[%clk 0:04:56]} 46... Qe4 {[%clk 0:14:39]} 47. Qc3+ {[%clk 0:05:15]} 47... Qe5
{[%clk 0:14:54]} 48. Qc8 {[%clk 0:04:47]} 48... Rc7 {[%clk 0:13:50]} 49. Qg4+
{[%clk 0:05:03]} 49... Qg5 {[%clk 0:13:50]} 50. Qd4+ {[%clk 0:05:30]} 50... Qf6
{[%clk 0:13:59]} 51. Qe4 {[%clk 0:05:51]} 51... Re7 {[%clk 0:14:15]} 52. Qg4+
{[%clk 0:04:46]} 52... Qg5 {[%clk 0:14:34]} 53. Qd4+ {[%clk 0:05:08]} 53... Qf6
{[%clk 0:14:58]} 54. Qxf6+ {[%clk 0:04:36]} 54... Kxf6 {[%clk 0:15:23]} 55. Kg2
{[%clk 0:05:04]} 55... Re6 {[%clk 0:15:26]} 56. Kf3 {[%clk 0:05:23]} 56... b5
{[%clk 0:15:39]} 57. Kf4 {[%clk 0:05:44]} 57... Rc6 {[%clk 0:16:01]} 58. Ke4
{[%clk 0:05:46]} 58... Ke6 {[%clk 0:16:24]} 59. f4 {[%clk 0:05:53]} 59... f5+
{[%clk 0:16:37]} 60. Ke3 {[%clk 0:06:18]} 60... h5 {[%clk 0:15:43]} 61. Rh2
{[%clk 0:06:43]} 61... a5 {[%clk 0:15:50]} 62. Rxh5 {[%clk 0:06:37]} 62... Rc2
{[%clk 0:16:13]} 63. Rh6+ {[%clk 0:05:38]} 63... Kf7 {[%clk 0:16:32]} 64. Ra6
{[%clk 0:04:27]} 64... a4 {[%clk 0:16:56]} 65. Kd4 {[%clk 0:04:53]} 65... Rxb2
{[%clk 0:17:20]} 66. Ke5 {[%clk 0:04:37]} 66... Rb3 {[%clk 0:17:43]} 67. Kxf5
{[%clk 0:04:30]} 67... Rxg3 {[%clk 0:18:07]} 68. Rb6 {[%clk 0:04:49]} 68... Rxa3
{[%clk 0:18:28]} 69. Rxb5 {[%clk 0:05:12]} 69... Rb3 {[%clk 0:18:40]} 70. Ra5 a3
{[%clk 0:19:05]} 71. Kg5 {[%clk 0:05:51]} 71... Rg3+ {[%clk 0:19:29]} 72. Kf5
{[%clk 0:06:16]} 72... Rb3 {[%clk 0:19:50]} 73. Ra7+ {[%clk 0:06:43]} 73... Ke8
{[%clk 0:20:09]} 74. Ke5 {[%clk 0:06:45]} 74... Rb5+ {[%clk 0:20:19]} 75. Kf6
{[%clk 0:07:07]} 75... Rb6+ {[%clk 0:20:46]} 76. Kg7 {[%clk 0:07:13]} 76... Rb4
{[%clk 0:20:30]} 77. f5 {[%clk 0:07:31]} 77... Rg4+ {[%clk 0:20:24]} 78. Kf6
{[%clk 0:07:55]} 78... Rg3 {[%clk 0:19:21]} 79. Re7+ {[%clk 0:04:19]} 79... Kf8
{[%clk 0:18:21]} 80. Re2 {[%clk 0:04:04]} 80... Rb3 {[%clk 0:18:35]} 81. Rc2
{[%clk 0:02:59]} 81... Rb6+ {[%clk 0:18:56]} 82. Kg5 {[%clk 0:03:23]} 82... Ra6
{[%clk 0:19:17]} 83. Ra2 {[%clk 0:03:44]} 83... Kf7 {[%clk 0:19:40]} 84. Kf4
{[%clk 0:04:06]} 1/2-1/2

[Variant "Standard"]
[Site "Europe Echecs"]

[Event "Championnat du monde jeunes U10"]
[Date "2024.11.25"]
[White "Tulegen, Ramazan"]
[Black "Zhang, Junyi"]
[WhiteElo "1818"]
[BlackElo "2061"]
[Round "10.8"]
[Result "1/2-1/2"]
[TimeControl "5400+30"]

1. e4 {[%clk 1:30:56]} 1... c5 {[%clk 1:31:00]} 2. Nf3 {[%clk 1:31:13]} 2... e6
{[%clk 1:31:29]} 3. d4 {[%clk 1:31:32]} 3... cxd4 {[%clk 1:31:57]} 4. Nxd4
{[%clk 1:31:54]} 4... Nf6 {[%clk 1:32:17]} 5. Nc3 {[%clk 1:32:17]} 5... Nc6
{[%clk 1:32:46]} 6. Ndb5 {[%clk 1:32:38]} 6... Bc5 {[%clk 1:33:06]} 7. Bf4
{[%clk 1:32:59]} 7... O-O {[%clk 1:33:30]} 8. Bc7 {[%clk 1:33:25]} 8... Qe7
{[%clk 1:33:57]} 9. Bd6 {[%clk 1:33:48]} 9... Bxd6 {[%clk 1:34:25]} 10. Qxd6
{[%clk 1:34:10]} 10... Qd8 {[%clk 1:34:44]} 11. Nc7 {[%clk 1:34:33]} 11... Rb8
{[%clk 1:35:08]} 12. Be2 {[%clk 1:34:42]} 12... b5 {[%clk 1:35:31]} 13. e5
{[%clk 1:34:52]} 13... Ne8 {[%clk 1:35:59]} 14. Nxe8 {[%clk 1:35:12]} 14... Rxe8
{[%clk 1:36:21]} 15. O-O {[%clk 1:35:32]} 15... b4 {[%clk 1:36:38]} 16. Ne4
{[%clk 1:35:57]} 16... Bb7 {[%clk 1:37:01]} 17. Qc5 {[%clk 1:35:32]} 17... Ba8
{[%clk 1:28:47]} 18. Rfd1 {[%clk 1:35:47]} 18... Qh4 {[%clk 1:25:15]} 19. Nd6
{[%clk 1:34:26]} 19... Rf8 {[%clk 1:21:27]} 20. g3 {[%clk 1:23:23]} 20... Qd8
{[%clk 1:13:30]} 21. Bf3 {[%clk 1:20:23]} 21... Qg5 {[%clk 1:03:58]} 22. Bxc6
{[%clk 1:06:46]} 22... Bxc6 {[%clk 1:03:04]} 23. Qe3 {[%clk 1:06:42]} 23... Qh5
{[%clk 1:00:40]} 24. f4 {[%clk 1:03:05]} 24... Bd5 {[%clk 0:56:06]} 25. Rf1
{[%clk 0:52:52]} 25... a5 {[%clk 0:52:28]} 26. b3 {[%clk 0:47:31]} 26... f6
{[%clk 0:49:56]} 27. Rae1 {[%clk 0:43:35]} 27... fxe5 {[%clk 0:45:49]} 28. Qxe5
{[%clk 0:43:37]} 28... Qg6 {[%clk 0:43:48]} 29. Rf2 {[%clk 0:36:38]} 29... h5
{[%clk 0:42:42]} 30. Rd1 {[%clk 0:30:06]} 30... h4 {[%clk 0:40:17]} 31. f5
{[%clk 0:27:52]} 31... Qg5 {[%clk 0:37:52]} 32. Rxd5 {[%clk 0:22:46]} 32... exd5
{[%clk 0:37:59]} 33. Qxd5+ {[%clk 0:23:07]} 33... Kh7 {[%clk 0:38:18]} 34. Qd3
{[%clk 0:22:25]} 34... Rb6 {[%clk 0:28:10]} 35. Rf4 {[%clk 0:15:59]} 35... hxg3
{[%clk 0:22:58]} 36. f6+ {[%clk 0:15:04]} 36... g6 {[%clk 0:20:50]} 37. Qe4
1/2-1/2

[Variant "Standard"]
[Site "Europe Echecs"]